[Event "Torneo Nuevo Centro. Jornada 11"]
[Site "Chess.com"]
[Date "2020.08.28"]
[Round "1"]
[White "Conon, Catalin"]
[Black "Méndez Giménez , Néstor Emmanuel"]
[Result "1-0"]
[WhiteElo "1928"]
[BlackElo "1243"]
[TimeControl "180+2"]
[EndTime "10:33:06 PDT"]
[Termination "Victoria de CatalinConon por jaque mate"]

1. e4 {[%clk 0:03:01.3]} 1... e6 {[%clk 0:03:01]} 2. d4 {[%clk 0:03:02.2]} 2...
d5 {[%clk 0:03:01.7]} 3. Bd3 {[%clk 0:03:03.4]} 3... Nf6 {[%clk 0:03:01.3]} 4.
e5 {[%clk 0:03:04.6]} 4... Nfd7 {[%clk 0:03:00.5]} 5. f4 {[%clk 0:03:06.1]} 5...
Bb4+ {[%clk 0:02:59.7]} 6. c3 {[%clk 0:03:07.2]} 6... Be7 {[%clk 0:02:59.9]} 7.
Nf3 {[%clk 0:03:08.2]} 7... f6 {[%clk 0:03:00.6]} 8. O-O {[%clk 0:03:08.7]} 8...
O-O {[%clk 0:02:59.7]} 9. Qe1 {[%clk 0:03:09.3]} 9... fxe5 {[%clk 0:03:00.4]}
10. fxe5 {[%clk 0:03:11.2]} 10... b6 {[%clk 0:02:59.8]} 11. Be3 {[%clk
0:03:11.9]} 11... Bb7 {[%clk 0:03:00.4]} 12. Nbd2 {[%clk 0:03:12.9]} 12... Nc6
{[%clk 0:03:01]} 13. Qg3 {[%clk 0:03:13.6]} 13... Bh4 {[%clk 0:02:59.3]} 14.
Qxh4 {[%clk 0:03:13.7]} 14... Rf4 {[%clk 0:02:58.9]} 15. Bxf4 {[%clk 0:03:12.9]}
15... Qxh4 {[%clk 0:02:57]} 16. Nxh4 {[%clk 0:03:14.8]} 16... h6 {[%clk
0:02:54.7]} 17. Ng6 {[%clk 0:03:15.4]} 17... Nf8 {[%clk 0:02:54.6]} 18. Nxf8
{[%clk 0:03:16.1]} 18... Rxf8 {[%clk 0:02:55.2]} 19. Bg3 {[%clk 0:03:18]} 19...
Rxf1+ {[%clk 0:02:54.6]} 20. Rxf1 {[%clk 0:03:19.9]} 20... a5 {[%clk 0:02:52.6]}
21. Bg6 {[%clk 0:03:21.3]} 21... Ne7 {[%clk 0:02:51.2]} 22. Bf7+ {[%clk
0:03:22.4]} 22... Kf8 {[%clk 0:02:51.1]} 23. Bxe6+ {[%clk 0:03:24.3]} 23... Ke8
{[%clk 0:02:51.7]} 24. Bf7+ {[%clk 0:03:25.3]} 24... Kd8 {[%clk 0:02:51.6]} 25.
e6 {[%clk 0:03:26.5]} 25... Bc6 {[%clk 0:02:51.2]} 26. Bh4 {[%clk 0:03:27]}
26... Bb5 {[%clk 0:02:49.4]} 27. Bxe7+ {[%clk 0:03:28.9]} 27... Kxe7 {[%clk
0:02:50]} 28. Rf2 {[%clk 0:03:30.8]} 28... c5 {[%clk 0:02:48.3]} 29. Nf3 {[%clk
0:03:32]} 29... cxd4 {[%clk 0:02:46.9]} 30. cxd4 {[%clk 0:03:33.9]} 30... Bc6
{[%clk 0:02:43]} 31. Ne5 {[%clk 0:03:35.8]} 31... Ba4 {[%clk 0:02:43.1]} 32.
Ng6+ {[%clk 0:03:37]} 32... Kd8 {[%clk 0:02:42.9]} 33. e7+ {[%clk 0:03:38.9]}
33... Kc8 {[%clk 0:02:42.7]} 34. Rc2+ {[%clk 0:03:39.3]} 34... Bxc2 {[%clk
0:02:41.6]} 35. e8=Q+ {[%clk 0:03:40.6]} 35... Kb7 {[%clk 0:02:42.1]} 36. Bxd5+
{[%clk 0:03:41.9]} 36... Ka6 {[%clk 0:02:42.3]} 37. a4 {[%clk 0:03:43.1]} 37...
b5 {[%clk 0:02:39]} 38. Qa8+ {[%clk 0:03:44]} 38... Kb6 {[%clk 0:02:39.7]} 39.
Qb7# {[%clk 0:03:45]} 1

[Event "Torneo Nuevo Centro. Jornada 11"]
[Site "Chess.com"]
[Date "2020.08.28"]
[Round "1"]
[White "Vicent Lázaro, Elena"]
[Black "Gómez Alonso, Óscar"]
[Result "0-1"]
[WhiteElo "671"]
[BlackElo "1796"]
[TimeControl "180+2"]
[EndTime "10:33:07 PDT"]
[Termination "Victoria de osgo78 por jaque mate"]

1. e3 {[%clk 0:03:01]} 1... c5 {[%clk 0:02:58]} 2. c4 {[%clk 0:03:02.9]} 2...
Nc6 {[%clk 0:02:57.9]} 3. Nc3 {[%clk 0:03:04.8]} 3... e6 {[%clk 0:02:58.8]} 4.
Bd3 {[%clk 0:03:05.8]} 4... g6 {[%clk 0:02:59.4]} 5. Bb1 {[%clk 0:03:03.8]} 5...
Bg7 {[%clk 0:03:00.3]} 6. Qc2 {[%clk 0:03:03.6]} 6... Nge7 {[%clk 0:03:01]} 7.
Nf3 {[%clk 0:03:02.4]} 7... O-O {[%clk 0:03:00.8]} 8. O-O {[%clk 0:03:02.7]}
8... Qc7 {[%clk 0:02:56.6]} 9. h4 {[%clk 0:03:01.5]} 9... h6 {[%clk 0:02:56.3]}
10. h5 {[%clk 0:03:00.8]} 10... f5 {[%clk 0:02:40.6]} 11. g4 {[%clk 0:02:59.5]}
11... fxg4 {[%clk 0:02:35.1]} 12. hxg6 {[%clk 0:02:57.1]} 12... Rxf3 {[%clk
0:02:31.7]} 13. e4 {[%clk 0:02:51.3]} 13... Rh3 {[%clk 0:02:14.5]} 14. f4 {[%clk
0:02:44.2]} 14... gxf3 {[%clk 0:02:13.3]} 15. Kf2 {[%clk 0:02:39.5]} 15... Qg3+
{[%clk 0:02:11.3]} 16. Ke3 {[%clk 0:02:38.6]} 16... Bd4+ {[%clk 0:02:10.5]} 17.
Kd3 {[%clk 0:02:38.2]} 17... Nb4# {[%clk 0:02:11.1]} 0

[Event "Torneo Nuevo Centro. Jornada 11"]
[Site "Chess.com"]
[Date "2020.08.28"]
[Round "1"]
[White "del Campo Hernández, Ángel "]
[Black "Donate Moreno, Silvia"]
[Result "0-1"]
[WhiteElo "1140"]
[BlackElo "1840"]
[TimeControl "180+2"]
[EndTime "10:34:01 PDT"]
[Termination "Victoria de monetesSAL por abandono"]

1. e4 {[%clk 0:02:56.2]} 1... c5 {[%clk 0:03:00.3]} 2. Nf3 {[%clk 0:02:55.4]}
2... d6 {[%clk 0:03:00.6]} 3. d4 {[%clk 0:02:54.9]} 3... cxd4 {[%clk 0:03:02.5]}
4. Nxd4 {[%clk 0:02:55.8]} 4... Nf6 {[%clk 0:03:03.5]} 5. Nc3 {[%clk 0:02:55.9]}
5... a6 {[%clk 0:03:04.6]} 6. Bg5 {[%clk 0:02:49.3]} 6... Nbd7 {[%clk
0:03:03.4]} 7. Bc4 {[%clk 0:02:43.9]} 7... e6 {[%clk 0:02:44.8]} 8. f4 {[%clk
0:02:15.3]} 8... h6 {[%clk 0:02:40.1]} 9. Bh4 {[%clk 0:02:14.9]} 9... Be7 {[%clk
0:02:38.2]} 10. Bxf6 {[%clk 0:02:07]} 10... Nxf6 {[%clk 0:02:37.5]} 11. e5
{[%clk 0:02:06.6]} 11... dxe5 {[%clk 0:02:32.7]} 12. fxe5 {[%clk 0:02:06.5]}
12... Nd7 {[%clk 0:02:25.9]} 13. Qh5 {[%clk 0:01:56]} 13... g6 {[%clk
0:02:20.1]} 14. Be2 {[%clk 0:01:38.4]} 14... gxh5 {[%clk 0:02:14.7]} 15. Bxh5
{[%clk 0:01:38.2]} 15... Nxe5 {[%clk 0:02:14.1]} 0

[Event "Torneo Nuevo Centro. Jornada 11"]
[Site "Chess.com"]
[Date "2020.08.28"]
[Round "1"]
[White "Tormos Beltran, Maite"]
[Black "Blanco Solaz, Ramón"]
[Result "1/2-1/2"]
[WhiteElo "1454"]
[BlackElo "1984"]
[TimeControl "180+2"]
[EndTime "10:34:20 PDT"]
[Termination "Tablas por repeticiÃ³n"]

1. d4 {[%clk 0:03:00.9]} 1... Nf6 {[%clk 0:02:58.5]} 2. c4 {[%clk 0:03:01.1]}
2... g6 {[%clk 0:02:59.3]} 3. Nc3 {[%clk 0:03:03]} 3... Bg7 {[%clk 0:03:00.2]}
4. Nf3 {[%clk 0:03:03.6]} 4... O-O {[%clk 0:03:00.3]} 5. g3 {[%clk 0:03:04.5]}
5... d6 {[%clk 0:02:59.4]} 6. Bg2 {[%clk 0:03:05.2]} 6... Nc6 {[%clk 0:03:00.9]}
7. O-O {[%clk 0:03:03.6]} 7... e5 {[%clk 0:03:02.4]} 8. d5 {[%clk 0:03:04]} 8...
Ne7 {[%clk 0:03:03.6]} 9. e4 {[%clk 0:03:04.7]} 9... Nd7 {[%clk 0:03:04.3]} 10.
Re1 {[%clk 0:02:54.4]} 10... f5 {[%clk 0:03:04.6]} 11. Ng5 {[%clk 0:02:49.4]}
11... Nf6 {[%clk 0:03:04.4]} 12. f4 {[%clk 0:02:39.3]} 12... h6 {[%clk 0:03:04]}
13. Ne6 {[%clk 0:02:38.2]} 13... Bxe6 {[%clk 0:03:05]} 14. dxe6 {[%clk 0:02:39]}
14... c6 {[%clk 0:02:59.5]} 15. exf5 {[%clk 0:02:33.9]} 15... Nxf5 {[%clk
0:02:59.8]} 16. fxe5 {[%clk 0:02:28.9]} 16... Qb6+ {[%clk 0:02:59]} 17. Kh1
{[%clk 0:02:24.5]} 17... dxe5 {[%clk 0:03:00.2]} 18. Rxe5 {[%clk 0:02:14.8]}
18... Ng4 {[%clk 0:03:01]} 19. Qxg4 {[%clk 0:02:05.4]} 19... Bxe5 {[%clk
0:03:01]} 20. Qxg6+ {[%clk 0:02:03]} 20... Bg7 {[%clk 0:03:02.5]} 21. e7 {[%clk
0:01:57.2]} 21... Rf7 {[%clk 0:03:01.2]} 22. Ne4 {[%clk 0:01:47.7]} 22... Rxe7
{[%clk 0:03:01.5]} 23. Nf6+ {[%clk 0:01:43.5]} 23... Kf8 {[%clk 0:02:59.6]} 24.
Nh7+ {[%clk 0:01:13.4]} 24... Kg8 {[%clk 0:03:00.6]} 25. Nf6+ {[%clk 0:01:14.2]}
25... Kf8 {[%clk 0:03:02.1]} 26. Nh7+ {[%clk 0:01:15]} 26... Kg8 {[%clk
0:03:03.5]} 27. Nf6+ {[%clk 0:01:16]} 1/2-1

[Event "Torneo Nuevo Centro. Jornada 11"]
[Site "Chess.com"]
[Date "2020.08.28"]
[Round "1"]
[White "Marques Montolio, Luis"]
[Black "Luque Saiz, Andrés"]
[Result "0-1"]
[WhiteElo "1473"]
[BlackElo "2044"]
[TimeControl "180+2"]
[EndTime "10:34:25 PDT"]
[Termination "Victoria de Chuch1n por abandono"]

1. e4 {[%clk 0:03:01.9]} 1... c6 {[%clk 0:03:01]} 2. d4 {[%clk 0:03:01.7]} 2...
d5 {[%clk 0:03:02.9]} 3. Nc3 {[%clk 0:03:02]} 3... dxe4 {[%clk 0:03:03.6]} 4.
Nxe4 {[%clk 0:03:01.9]} 4... Nf6 {[%clk 0:03:04.8]} 5. Ng3 {[%clk 0:02:59.1]}
5... Bg4 {[%clk 0:03:03.9]} 6. f3 {[%clk 0:02:58.3]} 6... Bc8 {[%clk 0:03:03]}
7. c3 {[%clk 0:02:59.2]} 7... Nbd7 {[%clk 0:03:01.8]} 8. Bd3 {[%clk 0:02:58.4]}
8... g6 {[%clk 0:03:02.5]} 9. Be3 {[%clk 0:02:57.6]} 9... Bg7 {[%clk 0:03:03.5]}
10. Qd2 {[%clk 0:02:58.7]} 10... e5 {[%clk 0:02:58.8]} 11. O-O-O {[%clk
0:02:50.7]} 11... O-O {[%clk 0:02:57.6]} 12. Bh6 {[%clk 0:02:49.5]} 12... exd4
{[%clk 0:02:56.2]} 13. Bxg7 {[%clk 0:02:49.3]} 13... Kxg7 {[%clk 0:02:58.1]} 14.
cxd4 {[%clk 0:02:48.9]} 14... Nb6 {[%clk 0:02:54.9]} 15. N1e2 {[%clk 0:02:38.3]}
15... a5 {[%clk 0:02:45.2]} 16. f4 {[%clk 0:02:33.8]} 16... Be6 {[%clk
0:02:30.7]} 17. f5 {[%clk 0:02:33.1]} 17... Bxa2 {[%clk 0:02:26.1]} 18. fxg6
{[%clk 0:02:31.7]} 18... fxg6 {[%clk 0:02:25.9]} 19. h4 {[%clk 0:02:26.7]} 19...
Bf7 {[%clk 0:01:39.9]} 20. h5 {[%clk 0:02:24.7]} 20... Nxh5 {[%clk 0:01:37.4]}
21. Nxh5+ {[%clk 0:02:16.3]} 21... gxh5 {[%clk 0:01:39.3]} 22. Qg5+ {[%clk
0:02:15.4]} 22... Qxg5+ {[%clk 0:01:39.7]} 0

[Event "Torneo Nuevo Centro. Jornada 11"]
[Site "Chess.com"]
[Date "2020.08.28"]
[Round "1"]
[White "Ortiz Benavent, Alba"]
[Black "Carbonell Bofill, Carlos Eloy"]
[Result "0-1"]
[WhiteElo "1201"]
[BlackElo "1905"]
[TimeControl "180+2"]
[EndTime "10:34:39 PDT"]
[Termination "Victoria de MFCARLOS por jaque mate"]

1. d4 {[%clk 0:02:52.2]} 1... Nf6 {[%clk 0:02:59.6]} 2. Nf3 {[%clk 0:02:49.8]}
2... d5 {[%clk 0:02:58.4]} 3. Bf4 {[%clk 0:02:50.3]} 3... c5 {[%clk 0:02:58.7]}
4. e3 {[%clk 0:02:51]} 4... Qb6 {[%clk 0:02:58.5]} 5. b3 {[%clk 0:02:43.1]} 5...
Nc6 {[%clk 0:02:58.5]} 6. Nbd2 {[%clk 0:02:41.5]} 6... cxd4 {[%clk 0:02:58.4]}
7. exd4 {[%clk 0:02:38.4]} 7... Nxd4 {[%clk 0:02:58.9]} 8. Nxd4 {[%clk
0:02:37.9]} 8... Qxd4 {[%clk 0:03:00.8]} 9. Bg3 {[%clk 0:02:29.6]} 9... e5
{[%clk 0:02:52.5]} 10. c4 {[%clk 0:02:26.5]} 10... Bb4 {[%clk 0:02:48.6]} 11.
Be2 {[%clk 0:02:19.4]} 11... Bxd2+ {[%clk 0:02:48.7]} 12. Qxd2 {[%clk
0:02:08.2]} 12... Qxa1+ {[%clk 0:02:48.4]} 13. Bd1 {[%clk 0:02:08.1]} 13... Ne4
{[%clk 0:02:37.2]} 14. Qxd5 {[%clk 0:02:00]} 14... Qc3+ {[%clk 0:02:36.6]} 15.
Kf1 {[%clk 0:01:54.1]} 15... Nxg3+ {[%clk 0:02:29.3]} 16. hxg3 {[%clk
0:01:52.1]} 16... O-O {[%clk 0:02:30.1]} 17. Qe4 {[%clk 0:01:47.4]} 17... f5
{[%clk 0:02:29.7]} 18. Qe2 {[%clk 0:01:43.2]} 18... f4 {[%clk 0:02:23.3]} 19.
Qh5 {[%clk 0:01:43]} 19... Qd3+ {[%clk 0:02:10.5]} 20. Be2 {[%clk 0:01:38.7]}
20... Qb1+ {[%clk 0:02:10.7]} 21. Bd1 {[%clk 0:01:35.9]} 21... fxg3 {[%clk
0:02:12.4]} 22. f3 {[%clk 0:01:30.2]} 22... Qxd1# {[%clk 0:02:10.6]} 0

[Event "Torneo Nuevo Centro. Jornada 11"]
[Site "Chess.com"]
[Date "2020.08.28"]
[Round "1"]
[White "Aguado, Pablo Luis"]
[Black "Miranda Calvo, Max Rodrigo"]
[Result "1-0"]
[WhiteElo "1931"]
[BlackElo "1302"]
[TimeControl "180+2"]
[EndTime "10:34:59 PDT"]
[Termination "Victoria de PLAD_2006 por jaque mate"]

1. d4 {[%clk 0:03:00.9]} 1... d5 {[%clk 0:02:59.6]} 2. c4 {[%clk 0:03:01.3]}
2... c6 {[%clk 0:02:46.3]} 3. Nc3 {[%clk 0:03:00.4]} 3... e6 {[%clk 0:02:47]} 4.
e4 {[%clk 0:03:00.6]} 4... Bb4 {[%clk 0:02:42.7]} 5. exd5 {[%clk 0:02:59.8]}
5... exd5 {[%clk 0:02:41.7]} 6. Nf3 {[%clk 0:02:55.8]} 6... Nf6 {[%clk
0:02:38.7]} 7. Bd3 {[%clk 0:02:53.9]} 7... Bg4 {[%clk 0:02:36.6]} 8. O-O {[%clk
0:02:54.1]} 8... Bxc3 {[%clk 0:02:36.3]} 9. bxc3 {[%clk 0:02:54.7]} 9... Nbd7
{[%clk 0:02:34.3]} 10. Re1+ {[%clk 0:02:55.2]} 10... Be6 {[%clk 0:02:33.3]} 11.
cxd5 {[%clk 0:02:54.3]} 11... cxd5 {[%clk 0:02:34.3]} 12. Ng5 {[%clk 0:02:53.7]}
12... Qe7 {[%clk 0:02:29.7]} 13. a4 {[%clk 0:02:51.3]} 13... O-O {[%clk
0:02:30.1]} 14. Ba3 {[%clk 0:02:51.7]} 14... Qe8 {[%clk 0:02:27.8]} 15. Bxf8
{[%clk 0:02:51.2]} 15... Kxf8 {[%clk 0:02:29.7]} 16. Nxh7+ {[%clk 0:02:45.8]}
16... Kg8 {[%clk 0:02:30.2]} 17. Ng5 {[%clk 0:02:45.4]} 17... Qe7 {[%clk
0:02:20.5]} 18. Qe2 {[%clk 0:02:41.5]} 18... Re8 {[%clk 0:02:19.7]} 19. Bf5
{[%clk 0:02:37.3]} 19... Nf8 {[%clk 0:02:13.9]} 20. Bxe6 {[%clk 0:02:32.8]}
20... Nxe6 {[%clk 0:02:12.2]} 21. Nxe6 {[%clk 0:02:33.5]} 21... Qxe6 {[%clk
0:02:10.2]} 22. Qxe6 {[%clk 0:02:34.2]} 22... Rxe6 {[%clk 0:02:11.2]} 23. Rxe6
{[%clk 0:02:34.2]} 23... fxe6 {[%clk 0:02:12.7]} 24. f3 {[%clk 0:02:35.5]} 24...
Kf7 {[%clk 0:02:10.4]} 25. a5 {[%clk 0:02:35.5]} 25... Ke7 {[%clk 0:02:08.6]}
26. Rb1 {[%clk 0:02:36.5]} 26... Kd6 {[%clk 0:02:07.5]} 27. Rxb7 {[%clk
0:02:36.6]} 27... a6 {[%clk 0:02:08.3]} 28. Rxg7 {[%clk 0:02:37.3]} 28... Nh5
{[%clk 0:02:06.1]} 29. Ra7 {[%clk 0:02:37.7]} 29... Nf4 {[%clk 0:02:00.7]} 30.
Rxa6+ {[%clk 0:02:38.7]} 30... Ke7 {[%clk 0:02:01.1]} 31. Kf1 {[%clk 0:02:36.3]}
31... Kf6 {[%clk 0:02:00.5]} 32. g3 {[%clk 0:02:36.6]} 32... Nd3 {[%clk
0:02:00.3]} 33. Rb6 {[%clk 0:02:36.1]} 33... Nc1 {[%clk 0:01:57.3]} 34. a6
{[%clk 0:02:36.7]} 34... Na2 {[%clk 0:01:58.1]} 35. a7 {[%clk 0:02:37.7]} 35...
Nxc3 {[%clk 0:01:59.3]} 36. a8=Q {[%clk 0:02:38.2]} 36... Kf5 {[%clk 0:01:52.8]}
37. Qf8+ {[%clk 0:02:38]} 37... Kg6 {[%clk 0:01:53.5]} 38. Rxe6+ {[%clk
0:02:38.3]} 38... Kh7 {[%clk 0:01:54.9]} 39. Rh6# {[%clk 0:02:39]} 1

[Event "Torneo Nuevo Centro. Jornada 11"]
[Site "Chess.com"]
[Date "2020.08.28"]
[Round "1"]
[White "Rodriguez Rodriguez, Joan David "]
[Black "Fernández Martín, Berta"]
[Result "1-0"]
[WhiteElo "1779"]
[BlackElo "565"]
[TimeControl "180+2"]
[EndTime "10:35:03 PDT"]
[Termination "Victoria de Not_Jr_chess por tiempo"]

1. d4 {[%clk 0:02:55.4]} 1... d5 {[%clk 0:02:59.9]} 2. c4 {[%clk 0:02:54.4]}
2... dxc4 {[%clk 0:02:40.1]} 3. e3 {[%clk 0:02:54.2]} 3... Nf6 {[%clk
0:02:30.9]} 4. Bxc4 {[%clk 0:02:54.3]} 4... Bf5 {[%clk 0:02:10.4]} 5. Nf3 {[%clk
0:02:54.4]} 5... e6 {[%clk 0:01:55.1]} 6. O-O {[%clk 0:02:54.6]} 6... Be7 {[%clk
0:01:43.8]} 7. Nc3 {[%clk 0:02:55.1]} 7... O-O {[%clk 0:01:34.3]} 8. a3 {[%clk
0:02:53.4]} 8... h6 {[%clk 0:01:27.7]} 9. Bd3 {[%clk 0:02:54.1]} 9... Nc6 {[%clk
0:01:21.4]} 10. Re1 {[%clk 0:02:44]} 10... Bd6 {[%clk 0:00:42.2]} 11. e4 {[%clk
0:02:42.6]} 11... Bg4 {[%clk 0:00:23.6]} 12. e5 {[%clk 0:02:38.9]} 12... Nxd4
{[%clk 0:00:17.3]} 13. exd6 {[%clk 0:02:32.7]} 1

[Event "Torneo Nuevo Centro. Jornada 11"]
[Site "Chess.com"]
[Date "2020.08.28"]
[Round "1"]
[White "Sampedro Roig, Josep Francesc"]
[Black "Hernández Tomás, Efrén"]
[Result "1-0"]
[WhiteElo "1838"]
[BlackElo "1097"]
[TimeControl "180+2"]
[EndTime "10:35:53 PDT"]
[Termination "Victoria de Abrekurios por jaque mate"]

1. e4 {[%clk 0:02:59.8]} 1... e5 {[%clk 0:03:01]} 2. Nf3 {[%clk 0:03:00]} 2...
Nf6 {[%clk 0:03:01.6]} 3. Nxe5 {[%clk 0:03:00.1]} 3... Qe7 {[%clk 0:03:02]} 4.
d4 {[%clk 0:02:56.5]} 4... d6 {[%clk 0:03:02.5]} 5. Nc4 {[%clk 0:02:51.5]} 5...
Nxe4 {[%clk 0:03:02.9]} 6. Be2 {[%clk 0:02:50.7]} 6... Be6 {[%clk 0:03:00.3]} 7.
O-O {[%clk 0:02:48.8]} 7... Bxc4 {[%clk 0:03:00.5]} 8. Bxc4 {[%clk 0:02:49.1]}
8... c6 {[%clk 0:02:52.2]} 9. f3 {[%clk 0:02:31.3]} 9... d5 {[%clk 0:02:47.7]}
10. Re1 {[%clk 0:02:09.4]} 10... Nd7 {[%clk 0:02:29.4]} 11. fxe4 {[%clk
0:02:05.1]} 11... dxc4 {[%clk 0:02:29.1]} 12. Qe2 {[%clk 0:01:43]} 12... Nb6
{[%clk 0:02:29]} 13. a4 {[%clk 0:01:38.1]} 13... O-O-O {[%clk 0:02:28.3]} 14. a5
{[%clk 0:01:36]} 14... Nd7 {[%clk 0:02:19.3]} 15. Qxc4 {[%clk 0:01:35.8]} 15...
Nf6 {[%clk 0:02:19.6]} 16. Nc3 {[%clk 0:01:35.5]} 16... Ng4 {[%clk 0:02:16]} 17.
Bf4 {[%clk 0:01:32.3]} 17... Qh4 {[%clk 0:02:12.6]} 18. Bg3 {[%clk 0:01:32.6]}
18... Qf6 {[%clk 0:02:08]} 19. e5 {[%clk 0:01:22.5]} 19... Qf5 {[%clk
0:01:59.7]} 20. a6 {[%clk 0:01:20.7]} 20... Qxc2 {[%clk 0:01:52.7]} 21. axb7+
{[%clk 0:01:20.3]} 21... Kxb7 {[%clk 0:01:52.9]} 22. Qa6+ {[%clk 0:01:15.8]}
22... Kc7 {[%clk 0:01:45.3]} 23. Qxa7+ {[%clk 0:01:12.6]} 23... Kc8 {[%clk
0:01:45.4]} 24. Qa8+ {[%clk 0:01:11]} 24... Kd7 {[%clk 0:01:45]} 25. Ra7+ {[%clk
0:01:10.4]} 25... Ke8 {[%clk 0:01:42.5]} 26. Qxc6+ {[%clk 0:01:07]} 26... Rd7
{[%clk 0:01:39.3]} 27. Qxd7# {[%clk 0:01:06.7]} 1

[Event "Torneo Nuevo Centro. Jornada 11"]
[Site "Chess.com"]
[Date "2020.08.28"]
[Round "1"]
[White "Gil López, Alejandro"]
[Black "Donate Peris, Jose Manuel"]
[Result "1-0"]
[WhiteElo "2209"]
[BlackElo "1542"]
[TimeControl "180+2"]
[EndTime "10:36:08 PDT"]
[Termination "Victoria de AglVal0313 por jaque mate"]

1. e4 {[%clk 0:02:54.3]} 1... e6 {[%clk 0:02:58.9]} 2. Nf3 {[%clk 0:02:55]} 2...
c5 {[%clk 0:02:57.6]} 3. c3 {[%clk 0:02:53.2]} 3... Nc6 {[%clk 0:02:57.9]} 4. d4
{[%clk 0:02:53.5]} 4... cxd4 {[%clk 0:02:57.8]} 5. cxd4 {[%clk 0:02:55.4]} 5...
Bb4+ {[%clk 0:02:56.6]} 6. Bd2 {[%clk 0:02:55.5]} 6... Bxd2+ {[%clk 0:02:55.6]}
7. Nbxd2 {[%clk 0:02:57.4]} 7... Nge7 {[%clk 0:02:53.9]} 8. Nc4 {[%clk
0:02:39.4]} 8... O-O {[%clk 0:02:50.1]} 9. d5 {[%clk 0:02:38.7]} 9... exd5
{[%clk 0:02:48.6]} 10. exd5 {[%clk 0:02:40.6]} 10... Na5 {[%clk 0:02:44]} 11.
Qd2 {[%clk 0:02:27.1]} 11... Nxc4 {[%clk 0:02:43.7]} 12. Bxc4 {[%clk 0:02:29]}
12... d6 {[%clk 0:02:43.7]} 13. O-O {[%clk 0:02:28.3]} 13... Ng6 {[%clk
0:02:35]} 14. Rfe1 {[%clk 0:02:12.8]} 14... Bg4 {[%clk 0:02:33.2]} 15. Nd4
{[%clk 0:02:06.9]} 15... Ne5 {[%clk 0:02:27.1]} 16. Bb3 {[%clk 0:02:04.9]} 16...
Qb6 {[%clk 0:02:21]} 17. h3 {[%clk 0:02:03.2]} 17... Bh5 {[%clk 0:02:19.1]} 18.
Nf5 {[%clk 0:01:54.1]} 18... Bg6 {[%clk 0:02:10.6]} 19. Ne7+ {[%clk 0:01:52.5]}
19... Kh8 {[%clk 0:02:08.7]} 20. Nxg6+ {[%clk 0:01:54.4]} 20... fxg6 {[%clk
0:02:06.9]} 21. Qe3 {[%clk 0:01:48.3]} 21... Qxe3 {[%clk 0:01:56.2]} 22. Rxe3
{[%clk 0:01:50.2]} 22... Rf6 {[%clk 0:01:49.8]} 23. Rc1 {[%clk 0:01:47.5]} 23...
Rf7 {[%clk 0:01:42.5]} 24. Rec3 {[%clk 0:01:41.2]} 24... Raf8 {[%clk 0:01:35.3]}
25. f3 {[%clk 0:01:40.4]} 25... h5 {[%clk 0:01:20.8]} 26. Rc7 {[%clk 0:01:40.1]}
26... Rxc7 {[%clk 0:01:18.5]} 27. Rxc7 {[%clk 0:01:39.4]} 27... Rf7 {[%clk
0:01:19.3]} 28. Rc8+ {[%clk 0:01:35.5]} 28... Kh7 {[%clk 0:01:18.8]} 29. Bc2
{[%clk 0:01:36]} 29... Kh6 {[%clk 0:01:18.4]} 30. Kf2 {[%clk 0:01:32.1]} 30...
g5 {[%clk 0:01:16]} 31. Rh8# {[%clk 0:01:29.5]} 1

[Event "Torneo Nuevo Centro. Jornada 11"]
[Site "Chess.com"]
[Date "2020.08.28"]
[Round "1"]
[White "Soliva Ruiz, Ramon"]
[Black "Escalona Moncholi, Felix"]
[Result "0-1"]
[WhiteElo "1520"]
[BlackElo "2105"]
[TimeControl "180+2"]
[EndTime "10:36:20 PDT"]
[Termination "Victoria de SchachSpielerESP por tiempo"]

1. d4 {[%clk 0:03:01.9]} 1... d5 {[%clk 0:03:00.4]} 2. Bf4 {[%clk 0:03:02.2]}
2... c5 {[%clk 0:03:01.4]} 3. e3 {[%clk 0:03:02.6]} 3... Nc6 {[%clk 0:03:02.5]}
4. Nf3 {[%clk 0:03:01.9]} 4... Bg4 {[%clk 0:03:00.4]} 5. c3 {[%clk 0:02:57.9]}
5... e6 {[%clk 0:03:00.5]} 6. Bb5 {[%clk 0:02:46.9]} 6... Ne7 {[%clk 0:02:57.4]}
7. Nbd2 {[%clk 0:02:37.2]} 7... a6 {[%clk 0:02:58.1]} 8. Be2 {[%clk 0:02:35.8]}
8... Ng6 {[%clk 0:02:55.4]} 9. Bg3 {[%clk 0:02:34.3]} 9... cxd4 {[%clk
0:02:50.6]} 10. exd4 {[%clk 0:02:33.9]} 10... Bd6 {[%clk 0:02:46.6]} 11. Bxd6
{[%clk 0:02:11.5]} 11... Qxd6 {[%clk 0:02:48.5]} 12. O-O {[%clk 0:02:07.6]}
12... Nf4 {[%clk 0:02:45.7]} 13. h3 {[%clk 0:01:55.9]} 13... Bh5 {[%clk
0:02:45.3]} 14. Re1 {[%clk 0:01:35.7]} 14... Nxe2+ {[%clk 0:02:45.4]} 15. Rxe2
{[%clk 0:01:27.6]} 15... h6 {[%clk 0:02:38.3]} 16. Qb3 {[%clk 0:01:10.9]} 16...
O-O {[%clk 0:02:30.4]} 17. Rae1 {[%clk 0:00:55.9]} 17... b5 {[%clk 0:02:28.3]}
18. g4 {[%clk 0:00:44.6]} 18... Bg6 {[%clk 0:02:26.9]} 19. Ne5 {[%clk
0:00:40.2]} 19... Bh7 {[%clk 0:02:24]} 20. Nxc6 {[%clk 0:00:39.3]} 20... Qxc6
{[%clk 0:02:24.6]} 21. Nf3 {[%clk 0:00:35.7]} 21... Be4 {[%clk 0:02:17.8]} 22.
Ne5 {[%clk 0:00:33]} 22... Qd6 {[%clk 0:02:13]} 23. f3 {[%clk 0:00:24.7]} 23...
Bh7 {[%clk 0:02:12.9]} 24. Rf2 {[%clk 0:00:22.9]} 24... f6 {[%clk 0:02:04.7]}
0